bitfinex-derivatives/quotes_BTCF0:USTF0_20210409
["timestamp","ask_amount","ask_price","bid_price","bid_amount"]
[1617981126985,0.01013526,58294.0,58293.0,2.4487369]
[1617981127186,0.01013526,58294.0,58293.0,5.6997369]
[1617981127598,0.01013673,58295.0,58293.0,5.79144426]
[1617981127795,0.01013673,58295.0,58294.0,1.27068045]
[1617981127796,0.30118952,58295.0,58294.0,1.27068045]
[1617981128012,0.30118952,58295.0,58294.0,2.27068045]
[1617981128213,0.30118952,58295.0,58294.0,2.54068045]
[1617981128494,0.30118952,58295.0,58294.0,2.647937]
[1617981130392,0.40844607,58295.0,58294.0,2.647937]
[1617981131898,0.40844607,58295.0,58294.0,1.647937]
[1617981132098,0.40844607,58295.0,58294.0,2.647937]
[1617981132499,0.770532,58295.0,58294.0,2.647937]
[1617981133300,1.01508685,58295.0,58294.0,2.647937]
[1617981133901,0.40844607,58295.0,58294.0,2.647937]
[1617981136103,0.6530002,58295.0,58294.0,2.647937]
[1617981136301,1.01566803,58295.0,58294.0,2.647937]
[1617981136702,0.6530002,58295.0,58294.0,2.647937]
[1617981137103,1.01593678,58295.0,58294.0,6.19032847]
[1617981137306,1.01593678,58295.0,58294.0,6.28203647]
[1617981142535,1.01593678,58295.0,58294.0,5.28203647]
[1617981144115,1.01593678,58295.0,58294.0,6.28203647]
[1617981144367,1.01593678,58295.0,58294.0,5.74319531]
[1617981144716,1.01593678,58295.0,58294.0,6.19065128]
[1617981145120,0.40844607,58295.0,58294.0,6.19065128]
[1617981145445,0.40844607,58295.0,58294.0,6.89904949]
[1617981145446,0.11745772,58295.0,58294.0,6.89904949]
[1617981145722,0.10725655,58295.0,58294.0,6.89904949]
[1617981146131,0.01021874,58297.0,58294.0,5.89904949]
[1617981146418,0.01021874,58297.0,58296.0,1.62668452]
[1617981146625,0.01021874,58297.0,58296.0,2.82668452]
[1617981146817,0.01021874,58297.0,58296.0,3.09668452]
[1617981147020,0.01021874,58297.0,58296.0,3.15781275]
[1617981147620,0.01021874,58297.0,58296.0,2.95781275]
[1617981147921,0.01021874,58297.0,58296.0,4.78351275]
[1617981148326,0.303628,58298.0,58296.0,4.78351275]
[1617981148327,0.01021795,58298.0,58296.0,5.87520518]
[1617981148745,0.01021795,58298.0,58297.0,2.77920242]
[1617981149122,0.01021795,58298.0,58297.0,3.04920242]
[1617981149722,0.01021795,58298.0,58297.0,5.58910242]
[1617981150023,0.30326907,58298.0,58297.0,5.08085779]
[1617981150225,0.30326907,58298.0,58297.0,2.54095779]
[1617981150525,3.89576907,58298.0,58297.0,2.44926604]
[1617981151751,0.01020689,58298.0,58297.0,2.44926604]
[1617981152327,0.30322267,58298.0,58297.0,2.44926604]
[1617981152825,0.30322267,58298.0,58297.0,5.58816604]
[1617981153028,0.01020677,58298.0,58297.0,5.58816604]
[1617981153426,0.01020677,58298.0,58297.0,6.18800542]
[1617981153626,0.01020677,58298.0,58297.0,5.18800542]
[1617981153829,0.01021005,58299.0,58297.0,6.18800542]
[1617981154232,0.01021005,58299.0,58298.0,4.0358]
[1617981154429,0.01021117,58300.0,58298.0,5.81466942]
[1617981154738,0.01021117,58300.0,58299.0,1.27065153]
[1617981155028,0.01021117,58300.0,58299.0,2.27065153]
[1617981155228,0.01021117,58300.0,58299.0,2.54065153]
[1617981156729,0.30365602,58300.0,58299.0,2.54065153]
[1617981157029,0.30365602,58300.0,58299.0,5.62095153]
[1617981157230,0.31387766,58300.0,58299.0,5.62095153]
[1617981157428,0.01022164,58300.0,58299.0,5.62095153]
[1617981158331,0.30381601,58300.0,58299.0,5.62095153]
[1617981158833,0.01022605,58300.0,58299.0,5.62095153]
[1617981160745,0.01022354,58301.0,58299.0,5.62095153]
[1617981160938,0.01022354,58301.0,58300.0,0.82338216]
[1617981161143,0.01022354,58301.0,58300.0,2.27042689]
[1617981161439,0.01022354,58301.0,58300.0,2.54042689]
[1617981162638,0.01022354,58301.0,58300.0,2.64768344]
[1617981164758,0.01022354,58301.0,58300.0,1.64768344]
[1617981164955,0.01022354,58301.0,58300.0,2.64768344]
[1617981167544,0.01022354,58301.0,58300.0,6.32218344]
[1617981167744,0.01022354,58301.0,58300.0,6.2304944]
[1617981167944,0.01022354,58301.0,58300.0,6.83036707]
[1617981168545,0.01022354,58301.0,58300.0,6.95558707]
[1617981169447,0.01022693,58302.0,58300.0,6.95558707]
[1617981169646,0.01022693,58302.0,58301.0,1.77907402]
[1617981169948,0.01022693,58302.0,58301.0,2.77907402]
[1617981170146,0.01022693,58302.0,58301.0,3.04907402]
[1617981171347,0.0102296,58303.0,58301.0,3.04907402]
[1617981171646,0.0102296,58303.0,58302.0,1.0]
[1617981171948,0.0102296,58303.0,58302.0,2.68736025]
[1617981172147,0.01023164,58304.0,58302.0,6.78286025]
[1617981172548,0.01023164,58304.0,58303.0,6.0]
[1617981172749,0.01023784,58308.0,58303.0,7.978772]
[1617981172956,0.01023784,58308.0,58307.0,1.625928]
[1617981173149,0.01023784,58308.0,58307.0,5.332228]
[1617981173352,0.01024038,58309.0,58307.0,5.602228]
[1617981173551,0.01023901,58310.0,58307.0,6.75502202]
[1617981173752,0.01023901,58310.0,58308.0,1.0611167]
[1617981173952,0.01024004,58311.0,58309.0,1.82557847]
[1617981174155,0.01024004,58311.0,58309.0,3.15669517]
[1617981174352,0.01024004,58311.0,58310.0,7.17849472]
[1617981174554,0.01024004,58311.0,58310.0,7.47016956]
[1617981174751,0.01024004,58311.0,58310.0,7.84742611]
[1617981174959,0.01023762,58312.0,58310.0,7.84742611]
[1617981175153,0.01023762,58312.0,58311.0,3.0392]
[1617981175353,0.01023762,58312.0,58311.0,5.50915535]
[1617981175552,0.01023762,58312.0,58311.0,5.77915535]
[1617981176553,0.01023497,58313.0,58311.0,5.77915535]
[1617981176953,0.01023612,58314.0,58312.0,1.26974725]
[1617981177155,0.01023612,58314.0,58312.0,2.38467725]
[1617981177354,0.01023612,58314.0,58313.0,2.44788872]
[1617981178957,0.01023494,58315.0,58313.0,2.44788872]
[1617981179158,0.01023565,58316.0,58314.0,1.17771262]
[1617981179357,0.01023565,58316.0,58314.0,2.17771262]
[1617981179558,0.01023565,58316.0,58315.0,1.38641668]
[1617981179759,0.01023565,58316.0,58315.0,2.4475316]
[1617981183564,0.01023565,58316.0,58315.0,1.4475316]
[1617981183763,0.01023565,58316.0,58315.0,2.4475316]
[1617981183966,0.0102257,58317.0,58315.0,2.4475316]
[1617981184264,0.0102257,58317.0,58316.0,1.73066912]
[1617981184866,0.0102257,58317.0,58316.0,2.10792567]
[1617981186289,0.01024363,58319.0,58316.0,2.55420569]
[1617981186766,0.30436758,58320.0,58318.0,1.11551117]
[1617981186767,0.01024406,58320.0,58318.0,1.11551117]
[1617981186967,0.30438055,58321.0,58319.0,3.42768741]
[1617981187166,0.30438055,58321.0,58319.0,3.69768741]
[1617981187368,0.30438055,58321.0,58320.0,0.73032091]
[1617981187566,0.30438055,58321.0,58320.0,1.73032091]
[1617981187767,0.30438055,58321.0,58320.0,2.00032091]
[1617981188768,0.30438055,58321.0,58320.0,5.69362091]
[1617981189973,0.01024101,58321.0,58320.0,5.69362091]
[1617981190270,0.30428963,58321.0,58320.0,5.69362091]
[1617981191970,0.01023988,58321.0,58320.0,5.69362091]
[1617981192470,0.31449582,58323.0,58320.0,5.69362091]
[1617981192672,0.01024007,58323.0,58320.0,5.69362091]
[1617981192870,0.01024007,58323.0,58322.0,1.77608095]
[1617981193070,0.01024007,58323.0,58322.0,1.83719851]
[1617981193271,0.01024007,58323.0,58322.0,2.10719851]
[1617981194472,0.30426202,58324.0,58322.0,2.10719851]
[1617981194673,2.8366,58323.0,58322.0,2.10719851]
[1617981194881,2.8366,58323.0,58322.0,1.74206986]
[1617981194882,3.26433437,58323.0,58322.0,1.74206986]
[1617981195073,3.26433437,58323.0,58322.0,1.0458881]
[1617981195375,0.42773437,58323.0,58322.0,2.0458881]
[1617981195575,0.42773437,58323.0,58322.0,5.33337479]
[1617981195982,0.30419437,58323.0,58322.0,5.33337479]
[1617981196476,0.01023769,58324.0,58322.0,5.69783771]
[1617981196677,0.01023769,58324.0,58322.0,4.69783771]
[1617981196876,0.01023769,58324.0,58322.0,1.04553771]
[1617981197077,0.01023769,58324.0,58323.0,1.72919196]
[1617981197477,0.01023769,58324.0,58323.0,1.99919196]
[1617981198078,0.30419123,58325.0,58323.0,1.99919196]
[1617981198079,0.01023665,58325.0,58324.0,3.0565]
[1617981198377,0.01023665,58325.0,58324.0,4.78562766]
[1617981198578,0.01023665,58325.0,58324.0,5.05562766]
[1617981200081,0.0102362,58326.0,58324.0,5.05562766]
[1617981200486,0.0102362,58326.0,58325.0,1.72883396]
[1617981200683,0.30415201,58326.0,58325.0,1.72883396]
[1617981200886,0.30415201,58326.0,58325.0,1.99883396]
[1617981201105,0.30415201,58326.0,58325.0,1.63462366]
[1617981201584,0.30415201,58326.0,58325.0,1.99870457]
[1617981201986,0.01023668,58326.0,58325.0,1.99870457]
[1617981202587,0.30419336,58326.0,58325.0,1.99870457]
[1617981202788,0.01023714,58326.0,58325.0,1.99870457]
[1617981203488,0.30421369,58326.0,58325.0,1.99870457]
[1617981203889,0.01023843,58326.0,58325.0,1.99870457]
[1617981206289,0.30423373,58326.0,58325.0,1.99870457]
[1617981206691,0.01023887,58326.0,58325.0,1.99870457]
[1617981207390,3.6381,58329.0,58325.0,1.27]
[1617981207691,0.01023874,58326.0,58325.0,1.27]
[1617981207890,0.01023874,58326.0,58325.0,0.93692961]
[1617981208092,0.01023874,58326.0,58325.0,1.93692961]
[1617981209692,0.01023874,58326.0,58325.0,5.16012961]
[1617981211696,0.01024019,58327.0,58325.0,5.16012961]
[1617981211894,0.01024019,58327.0,58325.0,5.29940961]
[1617981212096,0.30425846,58327.0,58326.0,0.72793352]
[1617981212294,0.30425846,58327.0,58326.0,1.72793352]
[1617981212494,0.30425846,58327.0,58326.0,1.99793352]
[1617981213996,0.01024097,58327.0,58326.0,4.88763352]
[1617981214196,0.36667772,58340.0,58326.0,4.88763352]
[1617981214197,0.01024091,58329.0,58326.0,5.33198192]
[1617981214495,0.01024091,58329.0,58327.0,0.2]
[1617981214696,0.01024091,58329.0,58328.0,3.5008]
[1617981214997,0.01024128,58330.0,58328.0,4.60562188]
[1617981215196,0.01024128,58330.0,58329.0,0.72756663]
[1617981215597,0.01024128,58330.0,58329.0,1.99756663]
[1617981216099,0.01024109,58331.0,58329.0,1.99756663]
[1617981216596,0.01024109,58331.0,58330.0,2.5708]
[1617981216797,0.30429212,58332.0,58330.0,3.99524082]
[1617981216997,0.01024055,58333.0,58330.0,5.01209247]
[1617981217199,0.01024055,58333.0,58331.0,1.72715666]
[1617981217398,0.01024055,58333.0,58332.0,1.0]
[1617981217603,0.01024055,58333.0,58332.0,1.99717493]
[1617981218601,0.01024055,58333.0,58332.0,5.08847493]
[1617981219400,0.01023992,58334.0,58332.0,5.08847493]
[1617981219902,0.10725655,58340.0,58332.0,5.08847493]
[1617981219903,0.01023847,58336.0,58333.0,1.72672501]
[1617981220102,0.30421437,58337.0,58335.0,1.0]
[1617981220103,0.01023826,58337.0,58335.0,1.0]
[1617981220300,0.01023826,58337.0,58336.0,0.72662007]
[1617981220500,0.01023826,58337.0,58336.0,1.73662007]
[1617981220902,0.01023826,58337.0,58336.0,1.84387662]
[1617981222102,0.01023826,58337.0,58336.0,5.37617662]
[1617981222802,0.01023826,58337.0,58336.0,4.64955655]
[1617981223004,0.01023826,58337.0,58336.0,5.3151922]
[1617981223503,0.30420805,58338.0,58336.0,5.3151922]
[1617981223808,0.30420805,58338.0,58337.0,0.72675799]
[1617981224005,0.30420805,58338.0,58337.0,1.87169799]
[1617981224205,0.30420805,58338.0,58337.0,2.14169799]
[1617981228008,0.30420805,58338.0,58337.0,1.77861381]
[1617981228509,0.30420805,58338.0,58337.0,2.14167775]
[1617981241024,0.30420805,58338.0,58337.0,4.77987775]
[1617981248429,3.96360805,58338.0,58337.0,2.14167775]
[1617981249231,0.30420805,58338.0,58337.0,2.14167775]
[1617981249431,3.96340805,58338.0,58337.0,2.14167775]
[1617981250458,4.32888263,58338.0,58337.0,0.99673775]
[1617981251433,1.11643179,58338.0,58337.0,0.27]
[1617981251832,1.62413115,58338.0,58337.0,3.1262]
[1617981252033,1.11643179,58338.0,58337.0,3.1262]
[1617981252232,1.62419144,58338.0,58337.0,2.8562]
[1617981252433,1.62419144,58338.0,58337.0,3.1162]
[1617981253237,1.11643179,58338.0,58337.0,4.1162]
[1617981253436,1.36084198,58338.0,58337.0,4.41911042]
[1617981253733,1.11643179,58338.0,58337.0,4.41911042]
[1617981253935,1.36084059,58338.0,58337.0,4.41911042]
[1617981254234,1.11643179,58338.0,58337.0,4.41911042]
[1617981254434,1.36084161,58338.0,58337.0,4.41911042]
[1617981254633,1.11643179,58338.0,58337.0,4.41911042]
[1617981254933,1.11643179,58338.0,58337.0,1.56291042]
[1617981255736,1.11643179,58338.0,58337.0,0.56291042]
[1617981255936,1.11643179,58338.0,58337.0,0.26]
[1617981256436,1.62434437,58338.0,58336.0,0.27]
[1617981256736,1.62544456,58337.0,58335.0,1.0]
[1617981256937,1.72857755,58337.0,58335.0,1.31317878]
[1617981257136,1.11753441,58336.0,58335.0,1.30317878]
[1617981257536,1.11753441,58336.0,58335.0,0.31317878]
[1617981258839,1.11753441,58336.0,58335.0,0.37428381]
[1617981259040,1.11753441,58336.0,58335.0,0.31317878]
[1617981259239,1.11753441,58336.0,58335.0,1.31317878]
[1617981259461,1.11753441,58336.0,58335.0,0.31317878]
[1617981260040,1.62554927,58336.0,58335.0,0.01]
[1617981260441,1.62554927,58336.0,58333.0,0.27]
[1617981260783,2.853,58334.0,58332.0,0.3036498]
[1617981261040,3.57019122,58333.0,58328.0,0.30436143]
[1617981261352,3.72377122,58333.0,58328.0,0.30436143]
[1617981261477,3.72377122,58333.0,58325.0,0.36523372]
[1617981261478,1.73306775,58329.0,58325.0,0.31456524]
[1617981261687,1.11778627,58326.0,58325.0,0.31456524]
[1617981261839,1.11778627,58326.0,58325.0,0.30456524]
[1617981262040,1.11778627,58326.0,58324.0,0.30461813]
[1617981262242,3.79748627,58326.0,58325.0,0.27]
[1617981262440,3.79748627,58326.0,58323.0,0.3046461]
[1617981262441,4.91653846,58326.0,58323.0,0.27]
[1617981262741,1.11704059,58324.0,58321.0,0.30465444]
[1617981262945,1.11696466,58322.0,58320.0,0.30465541]
[1617981263340,1.22413624,58321.0,58320.0,0.31465541]
[1617981263640,1.60479486,58321.0,58320.0,0.30465541]
[1617981263843,1.60479486,58321.0,58319.0,0.30457749]
[1617981264141,0.24344655,58321.0,58320.0,0.27]
[1617981264341,0.24344655,58321.0,58319.0,0.30457749]
[1617981264541,1.36005837,58321.0,58319.0,0.30457749]
[1617981264745,1.11636371,58320.0,58319.0,0.30457749]
[1617981265042,1.36083295,58320.0,58318.0,0.30450105]
[1617981265243,0.24446924,58320.0,58319.0,0.27]
[1617981265444,0.24446924,58320.0,58318.0,0.30450105]
[1617981265644,1.36024577,58320.0,58317.0,0.27]
[1617981265844,0.24344655,58321.0,58319.0,0.27]
[1617981266045,1.35892309,58320.0,58318.0,0.01]
[1617981266245,0.30387346,58319.0,58318.0,0.01]
[1617981266545,1.35861674,58319.0,58315.0,0.30442347]
[1617981266746,1.35861674,58319.0,58318.0,0.02]
[1617981266946,0.24344655,58321.0,58316.0,0.25]
[1617981266947,0.24448238,58320.0,58316.0,0.25]
[1617981267246,0.24448238,58320.0,58318.0,0.27]
[1617981267447,1.35727097,58319.0,58318.0,0.27]
[1617981267646,1.35727097,58319.0,58317.0,0.24]
[1617981267848,1.35727097,58319.0,58311.0,0.5]
[1617981267849,1.11279222,58319.0,58318.0,0.26]
[1617981268249,1.11279222,58319.0,58316.0,1.0]
[1617981268450,0.66736562,58317.0,58316.0,1.0]
[1617981268852,0.66736562,58317.0,58316.0,1.26]
[1617981270355,0.66736562,58317.0,58316.0,1.56418791]
[1617981270876,0.66736562,58317.0,58316.0,3.09228791]
[1617981271185,0.10725655,58321.0,58316.0,3.7881]
[1617981271357,0.10725655,58321.0,58320.0,0.10725655]
[1617981271556,0.47145787,58321.0,58320.0,0.41137213]
[1617981271859,0.41077566,58321.0,58320.0,1.68137213]
[1617981272084,0.41077566,58321.0,58320.0,5.14657213]
[1617981272356,1.01930582,58321.0,58320.0,4.84245655]
[1617981272557,0.41077566,58321.0,58320.0,5.14653279]
[1617981273760,0.11747549,58321.0,58320.0,5.51136381]
[1617981274375,0.01021894,58321.0,58320.0,5.51136381]
[1617981274615,0.01022328,58322.0,58320.0,5.51136381]
[1617981275059,3.691,58355.0,58321.0,1.0]
[1617981275261,0.01022987,58326.0,58321.0,2.1146359]
[1617981275463,0.01023286,58328.0,58323.0,0.44584265]
[1617981275663,0.01023286,58328.0,58325.0,1.0]
[1617981275862,0.01023286,58328.0,58327.0,0.30397837]
[1617981276261,0.0102338,58329.0,58327.0,1.31397837]
[1617981276661,0.0102338,58329.0,58328.0,1.72960469]
[1617981276961,0.30407557,58330.0,58328.0,1.85436469]
[1617981277161,0.30407557,58330.0,58329.0,1.0]
[1617981277362,0.30407557,58330.0,58329.0,1.10725655]
[1617981277566,0.010234,58330.0,58329.0,2.10676001]
[1617981277763,0.30408167,58331.0,58329.0,2.10676001]
[1617981278265,0.30408167,58331.0,58330.0,1.36489248]
[1617981278664,0.30408167,58331.0,58330.0,1.63489248]
[1617981279065,0.10725655,58332.0,58330.0,1.63489248]
[1617981279365,0.30408417,58331.0,58330.0,1.27]
[1617981279566,0.30408417,58331.0,58330.0,0.27]
[1617981279768,0.30408417,58331.0,58330.0,1.93858053]
[1617981280268,0.10725655,58332.0,58330.0,1.93858053]
[1617981280569,0.01023415,58331.0,58330.0,1.93858053]
[1617981280870,0.11749084,58332.0,58331.0,0.66839593]
[1617981281068,0.11749084,58332.0,58330.0,1.93831859]
[1617981281368,0.11749084,58332.0,58331.0,1.99942405]
[1617981281868,0.11749084,58332.0,58331.0,1.72942405]
[1617981282069,0.11749084,58332.0,58331.0,1.99942405]
[1617981284196,0.41136989,58332.0,58331.0,1.99942405]
[1617981286478,0.10725655,58332.0,58331.0,0.99942405]
[1617981286676,0.41138858,58332.0,58331.0,1.99942405]
[1617981287077,0.55448858,58332.0,58331.0,1.99942405]
[1617981288278,0.55448858,58332.0,58331.0,1.63488434]
[1617981288680,0.41138858,58332.0,58331.0,1.63488434]
[1617981289081,0.41138858,58332.0,58331.0,1.5737831]
[1617981290488,0.41138858,58332.0,58331.0,1.27]
[1617981290785,0.41138858,58332.0,58331.0,1.57406572]
[1617981291986,0.41138858,58332.0,58331.0,1.93896437]
[1617981294889,0.10725655,58332.0,58331.0,1.27]
[1617981295191,0.10725655,58332.0,58331.0,1.93893376]
[1617981295192,0.41147134,58332.0,58331.0,1.93893376]
[1617981296393,0.41147134,58332.0,58331.0,2.06381376]
[1617981301201,0.41147134,58332.0,58331.0,1.93893376]
[1617981303202,0.77636569,58332.0,58331.0,1.93893376]
[1617981303600,1.02077936,58332.0,58331.0,1.93893376]
[1617981303801,0.77636569,58332.0,58331.0,1.93893376]
[1617981304003,1.02078181,58332.0,58331.0,1.5740608]
[1617981309036,1.02078181,58332.0,58331.0,0.5740608]
[1617981309249,5.0612176,58332.0,58331.0,0.5740608]
[1617981309458,5.0612176,58332.0,58331.0,0.27]
[1617981309658,5.42786443,58332.0,58331.0,0.27]
[1617981309830,5.42786443,58332.0,58329.0,0.27]
[1617981310014,5.42786443,58332.0,58330.0,0.01]
[1617981310220,0.61109833,58331.0,58330.0,0.01]
[1617981310407,1.72496105,58331.0,58328.0,1.0]
[1617981310608,1.11386749,58329.0,58328.0,1.0]
[1617981310908,1.11386749,58329.0,58327.0,1.30444338]
[1617981311108,1.11386749,58329.0,58328.0,0.01]
[1617981311308,0.61109833,58331.0,58328.0,0.01]
[1617981311610,1.35821524,58329.0,58328.0,0.01]
[1617981311807,1.11377133,58329.0,58328.0,0.01]
[1617981312008,1.35821702,58329.0,58328.0,0.01]
[1617981312209,1.11377133,58329.0,58328.0,0.01]
[1617981314011,1.11377133,58329.0,58328.0,4.78105587]
[1617981314213,0.66828304,58329.0,58328.0,4.77105587]
[1617981314411,0.66828304,58329.0,58328.0,4.78105587]
[1617981314813,0.66828304,58329.0,58328.0,4.77105587]
[1617981315015,0.66828304,58329.0,58328.0,5.04105587]
[1617981315215,0.66828304,58329.0,58328.0,5.40639509]
[1617981315914,0.66828304,58329.0,58328.0,5.51365164]
[1617981316215,0.30377422,58329.0,58328.0,5.51365164]
[1617981316716,0.30377422,58329.0,58328.0,5.96016806]
[1617981316914,0.30377422,58329.0,58328.0,5.61380164]
[1617981317817,0.30377422,58329.0,58328.0,5.51365164]
[1617981318217,0.30377422,58329.0,58328.0,2.04705164]
[1617981318418,3.25217422,58329.0,58328.0,2.04705164]
[1617981319643,3.25217422,58329.0,58328.0,0.93979509]
[1617981319910,5.11696317,58329.0,58328.0,0.93979509]
[1617981320088,5.56222786,58329.0,58328.0,0.27]
[1617981320264,5.76222786,58329.0,58328.0,0.27]
[1617981320455,5.76222786,58329.0,58327.0,0.27]
[1617981320628,2.22924627,58328.0,58327.0,0.27]
[1617981320827,3.92924627,58328.0,58324.0,0.01]
[1617981321025,2.22924627,58328.0,58324.0,0.01]
[1617981321229,0.10725655,58332.0,58327.0,0.27]
[1617981321524,0.50561429,58328.0,58327.0,1.0]
[1617981321723,1.61807047,58328.0,58327.0,1.0]
[1617981321927,1.11245618,58328.0,58327.0,1.0]
[1617981322124,1.11245618,58328.0,58327.0,1.27]
[1617981322725,1.11245618,58328.0,58327.0,0.27]
[1617981323227,1.11245618,58328.0,58327.0,1.27]
[1617981323426,1.11245618,58328.0,58327.0,0.27]
[1617981323827,1.11245618,58328.0,58327.0,1.27]
[1617981324228,1.11245618,58328.0,58327.0,1.0]
[1617981324627,1.11245618,58328.0,58327.0,1.27]
[1617981325229,4.12455618,58328.0,58327.0,1.27]
[1617981325429,4.73568855,58328.0,58327.0,1.27]
[1617981326033,4.73568855,58328.0,58327.0,0.27]
[1617981326431,4.73568855,58328.0,58325.0,0.27]
[1617981326632,5.24160422,58328.0,58324.0,0.01]
[1617981326935,3.0121,58328.0,58327.0,1.26]
[1617981327132,3.0121,58328.0,58327.0,1.0]
[1617981327432,3.0121,58328.0,58327.0,1.25]
[1617981327732,4.12666133,58328.0,58327.0,0.25]
[1617981328032,5.00001468,58328.0,58327.0,0.25]
[1617981328332,5.00001468,58328.0,58325.0,1.0]
[1617981328532,3.51876756,58328.0,58327.0,0.25]
[1617981328732,3.51876756,58328.0,58325.0,1.0]
[1617981328932,4.63409665,58328.0,58325.0,1.0]
[1617981329133,3.51876756,58328.0,58327.0,0.27]
[1617981329333,5.00082455,58328.0,58326.0,0.27]
[1617981329535,5.00082455,58328.0,58325.0,1.0]
[1617981329536,1.72650697,58327.0,58325.0,1.0]
[1617981329733,1.11544464,58326.0,58325.0,1.0]
[1617981330034,1.46716403,58326.0,58325.0,1.0]
[1617981330232,1.46716403,58326.0,58325.0,1.27]
[1617981331534,1.46716403,58326.0,58325.0,0.27]
[1617981331735,1.46716403,58326.0,58325.0,1.27]
[1617981331934,1.46716403,58326.0,58325.0,1.0]
[1617981332136,1.46716403,58326.0,58324.0,1.27]
[1617981332335,1.46716403,58326.0,58325.0,0.27]
[1617981332536,0.10725655,58326.0,58325.0,0.27]
[1617981332736,1.58976457,58326.0,58325.0,0.27]
[1617981332938,1.73018134,58326.0,58325.0,0.27]
[1617981333138,1.97464863,58326.0,58324.0,0.27]
[1617981333340,1.3605321,58325.0,58324.0,0.27]
[1617981333540,1.3605321,58325.0,58323.0,1.31468953]
[1617981333741,1.3605321,58325.0,58323.0,1.01]
[1617981333944,0.2444668,58325.0,58324.0,0.27]
[1617981334142,0.91407905,58325.0,58324.0,0.27]
[1617981334343,4.18135341,58325.0,58324.0,0.27]
[1617981334644,4.18135341,58325.0,58323.0,0.27]
[1617981334645,4.44356614,58325.0,58323.0,0.27]
[1617981334842,4.44356614,58325.0,58324.0,0.27]
[1617981335043,5.05474604,58325.0,58324.0,0.27]
[1617981335243,5.05474604,58325.0,58322.0,1.0]
[1617981335445,5.05474604,58325.0,58324.0,0.26]
[1617981335744,5.05474604,58325.0,58318.0,0.30463952]
[1617981335944,0.5069576,58323.0,58321.0,0.01]
[1617981336144,2.8209,58325.0,58318.0,0.55463952]
[1617981336346,1.62298392,58322.0,58319.0,0.26]
[1617981336545,0.50715712,58322.0,58321.0,0.02]
[1617981336846,5.32137946,58322.0,58321.0,0.02]
[1617981337046,5.32137946,58322.0,58321.0,1.0]
[1617981337248,5.4254293,58322.0,58321.0,1.01]
[1617981338046,5.53268585,58322.0,58321.0,1.01]
[1617981338245,5.53268585,58322.0,58321.0,0.01]
[1617981341750,4.17072458,58322.0,58321.0,0.01]
[1617981342152,4.92196055,58322.0,58321.0,0.01]
[1617981343054,4.92196055,58322.0,58320.0,1.26]
[1617981343254,4.92196055,58322.0,58321.0,0.01]
[1617981343455,3.80525655,58322.0,58321.0,0.01]
[1617981343656,4.92190427,58322.0,58321.0,0.01]
[1617981343856,4.92131388,58322.0,58321.0,0.01]
[1617981344857,4.92131388,58322.0,58320.0,0.26]
[1617981345160,1.72785595,58321.0,58319.0,1.0]
[1617981345559,1.11665985,58320.0,58319.0,1.0]
[1617981345758,1.36113858,58320.0,58319.0,1.0]
[1617981345958,1.36113858,58320.0,58319.0,1.27]
[1617981345959,1.11665985,58320.0,58319.0,1.27]
[1617981346959,1.11665985,58320.0,58319.0,0.27]
[1617981347359,1.11665985,58320.0,58318.0,1.27]
[1617981347761,0.61119556,58321.0,58319.0,0.27]
[1617981347960,1.11665013,58320.0,58319.0,0.27]
[1617981348460,2.61665013,58320.0,58319.0,0.27]
[1617981348660,2.61665013,58320.0,58318.0,0.01]
[1617981348661,6.06165013,58320.0,58318.0,0.01]
[1617981348864,0.60993098,58319.0,58318.0,0.01]
[1617981349061,3.7353569,58319.0,58311.0,0.3036198]
[1617981349261,3.7353569,58319.0,58318.0,0.01]
[1617981349462,2.06673895,58319.0,58318.0,0.01]
[1617981349662,2.06673895,58319.0,58310.0,0.30366427]
[1617981349862,3.69074536,58319.0,58318.0,0.01]
[1617981350264,3.69074536,58319.0,58311.0,0.01]
[1617981350462,3.69074536,58319.0,58317.0,0.27]
[1617981350762,3.69074536,58319.0,58310.0,0.01]
[1617981350763,0.24451763,58318.0,58310.0,0.01]
[1617981350962,1.5,58317.0,58310.0,0.01]
[1617981351163,0.50744842,58315.0,58314.0,0.27]
[1617981351362,1.73803952,58315.0,58311.0,0.26]
[1617981351564,1.11631244,58312.0,58311.0,0.26]
[1617981351865,1.11631244,58312.0,58303.0,1.36452474]
[1617981351866,4.60381244,58312.0,58307.0,0.27]
[1617981352064,1.11632621,58308.0,58305.0,0.30382624]
[1617981352364,0.24452986,58308.0,58306.0,0.26]
[1617981352564,0.24452986,58308.0,58305.0,0.30382624]
[1617981352765,0.66970943,58307.0,58305.0,0.30382624]
[1617981352964,0.66973732,58306.0,58305.0,0.30382624]
[1617981353366,0.91427475,58306.0,58305.0,0.27]
[1617981353609,3.97890703,58306.0,58305.0,0.27]
[1617981353768,3.97890703,58306.0,58304.0,0.01]
[1617981353966,4.59025973,58306.0,58304.0,0.01]
[1617981354165,4.59025973,58306.0,58305.0,0.01]
[1617981354366,4.59025973,58306.0,58302.0,0.27]
[1617981354570,1.36055949,58305.0,58302.0,0.27]
[1617981354767,1.36055949,58305.0,58304.0,0.27]
[1617981355067,0.24454017,58305.0,58302.0,0.27]
[1617981355468,2.8603577,58305.0,58304.0,0.27]
[1617981355667,2.8603577,58305.0,58299.0,0.31400956]
[1617981355870,3.2106,58300.0,58298.0,0.41122078]
[1617981356070,0.10725655,58299.0,58298.0,0.41122078]
[1617981356469,0.10725655,58299.0,58298.0,0.68122078]
[1617981356670,1.02133025,58299.0,58298.0,0.68122078]
[1617981357270,1.02133025,58299.0,58298.0,0.57396423]
[1617981357671,0.411595,58299.0,58298.0,0.57396423]
[1617981358371,0.41150573,58299.0,58298.0,0.57396423]
[1617981359675,0.41150573,58299.0,58298.0,0.27]
[1617981359877,0.41150573,58299.0,58298.0,0.57380557]
[1617981360073,0.41150573,58299.0,58298.0,0.30380557]
[1617981360476,0.41150573,58299.0,58298.0,0.57380557]
[1617981360675,0.77651519,58299.0,58298.0,0.27]
[1617981360875,3.36771519,58299.0,58298.0,0.27]
[1617981361176,3.81226787,58299.0,58297.0,0.30381577]
[1617981361375,3.81226787,58299.0,58298.0,0.27]
[1617981361576,3.26346601,58299.0,58298.0,0.27]
[1617981361776,3.5676249,58299.0,58298.0,0.27]
[1617981361977,3.5676249,58299.0,58297.0,0.01]
[1617981362176,0.30416156,58298.0,58297.0,0.01]
[1617981362378,3.15606156,58298.0,58296.0,0.30362983]
[1617981362780,2.8519,58298.0,58297.0,0.27]
[1617981363080,2.95603777,58298.0,58297.0,0.27]
[1617981363679,2.95603777,58298.0,58297.0,0.57370608]